bitfinex-derivatives/quotes_SOLF0:USTF0_20260217
["timestamp","ask_amount","ask_price","bid_price","bid_amount"]
[1771319773269,3.83581597,85.799,85.707,34.97]
[1771319773462,2.76401752,85.77,85.724,81.2]
[1771319773666,3.83581597,85.769,85.723,81.24]
[1771319773867,2.76401752,85.78,85.732,10.5035]
[1771319774066,2.76401752,85.79,85.74,2.76401752]
[1771319774272,3.83581597,85.794,85.74,2.76401752]
[1771319774669,3.83581597,85.794,85.715,2.02937343]
[1771319774670,3.73890066,85.806,85.75,2.76401752]
[1771319775275,3.73890066,85.806,85.762,3.89387121]
[1771319777573,3.73890066,85.806,85.761,91.7999]
[1771319777574,3.73890066,85.806,85.764,3.89387121]
[1771319778878,3.73890066,85.806,85.766,3.89387121]
[1771319779076,3.73890066,85.819,85.766,3.89387121]
[1771319779273,3.73890066,85.819,85.78,14.39157121]
[1771319779578,3.73890066,85.819,85.781,3.89387121]
[1771319780471,3.73890066,85.819,85.769,77.23387121]
[1771319780665,3.73890066,85.819,85.782,10.4974]
[1771319781976,2.76401752,85.83,85.786,3.89387121]
[1771319782275,3.73890066,85.831,85.786,3.89387121]
[1771319783683,2.76401752,85.83,85.786,3.89387121]
[1771319783868,3.73890066,85.829,85.786,3.89387121]
[1771319785478,10.4919,85.828,85.786,3.89387121]
[1771319786373,10.4907,85.837,85.786,3.89387121]
[1771319786572,10.4907,85.837,85.78,2.76401752]
[1771319786573,3.73890066,85.841,85.788,3.89387121]
[1771319787178,10.74652889,85.886,85.737,34.97]
[1771319787179,10.4895,85.848,85.796,3.89387121]
[1771319787377,10.4895,85.848,85.8,2.76401752]
[1771319787581,3.73890066,85.856,85.807,3.89387121]
[1771319789480,10.4886,85.855,85.807,3.89387121]
[1771319791278,10.4886,85.855,85.811,3.89387121]
[1771319791474,10.4875,85.863,85.813,3.89387121]
[1771319791879,10.4875,85.863,85.815,3.89387121]
[1771319792280,10.4875,85.863,85.819,3.89387121]
[1771319792880,10.4875,85.863,85.821,3.89387121]
[1771319793484,3.73890066,85.868,85.821,3.89387121]
[1771319793880,3.73890066,85.868,85.82,13.25671752]
[1771319793881,3.73890066,85.868,85.823,3.89387121]
[1771319794483,14.22460066,85.879,85.825,3.89387121]
[1771319794683,3.73890066,85.878,85.827,3.89387121]
[1771319795282,3.73890066,85.876,85.832,3.89387121]
[1771319795682,3.73890066,85.876,85.782,46.62]
[1771319795683,3.73890066,85.907,85.841,3.89387121]
[1771319795883,3.73890066,85.899,85.852,3.89387121]
[1771319797787,3.73890066,85.899,85.855,3.89387121]
[1771319798982,3.73890066,85.899,85.85,2.76325188]
[1771319798983,3.73890066,85.899,85.857,3.89387121]
[1771319800187,3.73890066,85.899,85.861,3.89387121]
[1771319802594,3.73890066,85.899,85.862,14.38147121]
[1771319803493,3.73890066,85.899,85.863,3.89387121]
[1771319806895,10.482,85.909,85.863,3.89387121]
[1771319807101,2.76325188,85.92,85.866,3.87637913]
[1771319807297,3.63180091,85.921,85.871,3.87637913]
[1771319808695,10.4806,85.92,85.874,10.4861]
[1771319808901,14.11240091,85.92,85.875,3.87637913]
[1771319809798,3.63180091,85.919,85.875,3.87637913]
[1771319810401,10.4808,85.918,85.875,3.87637913]
[1771319810601,3.89557058,85.917,85.875,3.87637913]
[1771319811496,10.4812,85.915,85.875,3.87637913]
[1771319811999,14.37677058,85.915,85.875,3.87637913]
[1771319813296,3.89557058,85.914,85.875,3.87637913]
[1771319814506,2.76325188,85.91,85.875,3.87637913]
[1771319814705,10.4816,85.912,85.875,3.87637913]
[1771319814907,3.89557058,85.911,85.875,3.87637913]
[1771319819408,10.4828,85.902,85.863,10.4875]
[1771319819611,3.89557058,85.889,85.85,3.70345367]
[1771319820802,3.89557058,85.889,85.853,10.4887]
[1771319822112,3.89557058,85.889,85.85,3.70345367]
[1771319822314,20.9576,85.935,85.844,10.4898]
[1771319822315,6.65882246,85.88,85.844,10.4898]
[1771319822607,3.89557058,85.879,85.844,10.4898]
[1771319824602,34.97,85.934,85.817,3.70345367]
[1771319824603,3.89557058,85.859,85.817,3.70345367]
[1771319824807,3.89557058,85.849,85.805,3.70345367]
[1771319825010,3.89557058,85.849,85.806,3.70345367]
[1771319825909,3.89557058,85.849,85.809,14.19755367]
[1771319826108,2.76325188,85.86,85.809,3.70345367]
[1771319826509,3.89557058,85.861,85.805,82.32]
[1771319826510,3.89557058,85.861,85.818,3.70345367]
[1771319826714,2.76325188,85.87,85.818,3.70345367]
[1771319827009,3.89557058,85.873,85.82,3.70345367]
[1771319827614,10.4866,85.871,85.825,3.70345367]
[1771319828614,10.4866,85.871,85.827,3.70345367]
[1771319828816,3.89557058,85.873,85.827,3.70345367]
[1771319829518,10.4843,85.89,85.837,3.70345367]
[1771319829715,3.89557058,85.889,85.837,3.70345367]
[1771319829915,3.89557058,85.879,85.837,3.70345367]
[1771319831313,3.89557058,85.879,85.838,10.4905]
[1771319833319,3.89557058,85.879,85.842,3.70345367]
[1771319835117,3.92859665,85.895,85.85,3.75999723]
[1771319835926,3.92859665,85.895,85.855,3.75999723]
[1771319836119,3.92859665,85.908,85.855,3.75999723]
[1771319837524,3.92859665,85.908,85.86,3.75999723]
[1771319838224,3.92859665,85.904,85.86,3.75999723]
[1771319838422,3.92859665,85.899,85.852,3.75999723]
[1771319839716,3.92859665,85.897,85.852,3.75999723]
[1771319846432,3.92859665,85.895,85.851,83.1]
[1771319846634,3.92859665,85.889,85.847,10.4894]
[1771319852932,3.92859665,85.889,85.847,14.24939723]
[1771319854233,3.92859665,85.885,85.847,3.75999723]
[1771319855942,3.92859665,85.883,85.842,83.4]
[1771319856235,3.92859665,85.883,85.801,20.9902]
[1771319856236,3.92859665,85.869,85.833,10.4912]
[1771319856438,3.92859665,85.869,85.82,3.75999723]
[1771319856439,3.92859665,85.868,85.821,83.5]
[1771319856628,3.92859665,85.868,85.82,3.75999723]
[1771319857435,3.92859665,85.867,85.823,3.75999723]
[1771319858840,3.92859665,85.867,85.824,10.4923]
[1771319859143,2.76248995,85.86,85.809,3.75999723]
[1771319859337,2.76248995,85.86,85.739,35.64396088]
[1771319859338,3.92859665,85.834,85.791,3.75999723]
[1771319859734,14.41789665,85.849,85.791,3.75999723]
[1771319859938,14.41789665,85.849,85.793,3.75999723]
[1771319860332,10.4898,85.845,85.793,3.75999723]
[1771319860539,2.76248995,85.84,85.793,3.75999723]
[1771319860740,3.92859665,85.839,85.794,3.75999723]
[1771319861548,3.92859665,85.839,85.734,3.75999723]
[1771319861740,3.92859665,85.819,85.761,3.75999723]
[1771319861942,3.92859665,85.799,85.743,3.75999723]
[1771319862144,3.92859665,85.779,85.721,3.75999723]
[1771319862340,2.76248995,85.77,85.723,3.75999723]
[1771319862545,3.92859665,85.769,85.724,83.76]
[1771319862747,3.92859665,85.769,85.723,3.75999723]
[1771319863146,3.92859665,85.759,85.705,5.78948309]
[1771319863549,3.92859665,85.759,85.706,3.75999723]
[1771319863950,3.92859665,85.759,85.705,2.02948586]
[1771319863951,3.92859665,85.759,85.708,3.75999723]
[1771319864142,3.92859665,85.759,85.71,3.75999723]
[1771319864346,3.92859665,85.759,85.711,3.60808706]
[1771319865149,3.57933185,85.758,85.711,3.60808706]
[1771319866756,3.57933185,85.755,85.711,3.60808706]
[1771319869257,3.57933185,85.749,85.711,3.60808706]
[1771319869658,73.34,85.788,85.711,3.60808706]
[1771319869659,3.57933185,85.787,85.711,3.60808706]
[1771319869856,2.76248995,85.77,85.711,3.60808706]
[1771319870057,6.56066055,85.77,85.711,3.60808706]
[1771319870259,3.7981706,85.766,85.711,3.60808706]
[1771319870656,3.7981706,85.766,85.712,3.65404745]
[1771319871458,3.7981706,85.766,85.713,3.65404745]
[1771319872055,3.7981706,85.766,85.713,87.63404745]
[1771319872257,3.7981706,85.766,85.714,3.65404745]
[1771319872659,3.7981706,85.766,85.714,14.15974745]
[1771319872863,3.7981706,85.766,85.715,3.65404745]
[1771319873658,6.56066055,85.78,85.72,2.76248995]
[1771319873958,3.7981706,85.78,85.721,3.65404745]
[1771319874653,3.7981706,85.78,85.727,3.65404745]
[1771319875863,2.76248995,85.79,85.731,3.65404745]
[1771319876162,3.7981706,85.789,85.733,3.65404745]
[1771319876657,3.7981706,85.789,85.737,3.65404745]
[1771319877660,3.7981706,85.789,85.742,3.65404745]
[1771319878259,3.7981706,85.789,85.741,10.5024]
[1771319878260,3.7981706,85.789,85.747,3.65404745]
[1771319879761,3.7981706,85.789,85.748,10.5015]
[1771319881071,3.7981706,85.789,85.751,3.65404745]
[1771319881566,2.76248995,85.78,85.739,3.65404745]
[1771319881770,3.7981706,85.779,85.739,3.65404745]
[1771319883056,3.7981706,85.769,85.721,3.65404745]
[1771319883261,3.7981706,85.759,85.721,3.65404745]
[1771319883458,3.7981706,85.759,85.7,2.76248995]
[1771319883459,3.7981706,85.759,85.71,3.65404745]
[1771319883862,2.76248995,85.77,85.711,3.65404745]
[1771319884062,6.56066055,85.77,85.711,3.65404745]
[1771319884262,3.7981706,85.77,85.722,3.65404745]
[1771319884463,10.4988,85.771,85.722,3.65404745]
[1771319885356,3.7981706,85.779,85.728,3.65404745]
[1771319886166,3.7981706,85.779,85.731,3.65404745]
[1771319887668,10.4967,85.789,85.743,3.65404745]
[1771319888372,14.2948706,85.789,85.743,3.65404745]
[1771319888766,14.2948706,85.789,85.745,10.5019]
[1771319889768,14.2948706,85.789,85.745,14.15594745]
[1771319890866,14.2948706,85.789,85.746,3.65404745]
[1771319896179,3.61541006,85.788,85.746,3.65404745]
[1771319896481,3.61541006,85.784,85.746,3.65404745]
[1771319897078,3.61541006,85.784,85.747,10.5017]
[1771319899472,3.61541006,85.78,85.733,10.5034]
[1771319899686,3.61541006,85.779,85.734,3.82745657]
[1771319899979,3.61541006,85.779,85.742,10.5023]
[1771319901081,3.61541006,85.803,85.742,3.82745657]
[1771319901285,3.61541006,85.803,85.751,3.82745657]
[1771319902689,3.61541006,85.789,85.739,3.82745657]
[1771319903289,3.61541006,85.779,85.739,3.82745657]
[1771319903685,3.61541006,85.773,85.73,10.5037]
[1771319906087,10.74652889,85.799,85.73,10.5037]
[1771319906088,3.61541006,85.769,85.73,10.5037]
[1771319906285,3.61541006,85.759,85.723,10.5047]
[1771319906896,3.61541006,85.759,85.715,10.5056]
[1771319908285,3.61541006,85.757,85.715,10.5056]
[1771319909492,3.61541006,85.755,85.714,3.82745657]
[1771319909796,3.61541006,85.755,85.707,10.5066]
[1771319909797,3.61541006,85.749,85.707,10.5066]
[1771319909988,2.76248995,85.75,85.7,3.82745657]
[1771319909989,3.61541006,85.741,85.7,3.82745657]
[1771319910296,3.61541006,85.739,85.7,3.82745657]
[1771319912188,3.61541006,85.729,85.681,3.82745657]
[1771319913094,3.61541006,85.729,85.683,3.82745657]
[1771319914304,3.61541006,85.729,85.686,10.5091]
[1771319914503,10.5032,85.736,85.686,10.5091]
[1771319914504,3.61541006,85.719,85.686,10.5091]
[1771319914802,3.61541006,85.719,85.683,3.82745657]
[1771319915402,2.76248995,85.73,85.685,3.82745657]
[1771319915602,2.76248995,85.73,85.654,2.03088343]
[1771319915603,3.61541006,85.746,85.691,3.82745657]
[1771319916703,3.61541006,85.746,85.707,10.5065]
[1771319918909,10.5009,85.754,85.71,3.82745657]
[1771319919309,3.61541006,85.758,85.714,10.5057]
[1771319919806,2.77154478,85.75,85.694,3.82745657]
[1771319920000,3.61541006,85.749,85.694,3.82745657]
[1771319920306,2.77154478,85.75,85.654,2.03088343]
[1771319920307,3.61541006,85.759,85.701,3.82745657]
[1771319921702,3.61541006,85.759,85.71,10.5061]
[1771319921904,3.61541006,85.759,85.711,3.82745657]
[1771319922805,3.61541006,85.759,85.713,10.5059]
[1771319923306,2.77154478,85.76,85.718,3.82745657]
[1771319923506,3.61541006,85.769,85.718,3.82745657]
[1771319924703,3.61541006,85.769,85.721,3.70153278]
[1771319924905,2.77154478,85.76,85.721,3.70153278]
[1771319925308,3.61541006,85.769,85.721,3.70153278]
[1771319926704,3.61541006,85.769,85.724,10.5045]
[1771319929310,3.61541006,85.769,85.727,3.70153278]
[1771319931808,2.77154478,85.78,85.736,3.59269785]
[1771319932107,2.77154478,85.79,85.736,3.59269785]
[1771319932514,3.88854912,85.789,85.736,3.59269785]
[1771319932808,3.88854912,85.788,85.738,3.59269785]
[1771319933721,10.4968,85.787,85.741,3.59269785]
[1771319934313,3.88854912,85.784,85.745,10.5019]
[1771319935010,3.88854912,85.784,85.741,3.59269785]
[1771319935011,3.88854912,85.78,85.741,3.59269785]
[1771319935215,3.88854912,85.779,85.741,3.59269785]
[1771319935418,3.88854912,85.779,85.742,10.5023]
[1771319936121,3.88854912,85.779,85.742,14.09499785]
[1771319938620,3.88854912,85.779,85.744,14.09479785]
[1771319939207,3.88854912,85.779,85.744,3.59269785]
[1771319940113,3.88854912,85.769,85.732,3.59269785]
[1771319940421,6.6600939,85.74,85.701,3.59269785]
[1771319940715,2.77154478,85.75,85.701,3.59269785]
[1771319941417,2.77154478,85.75,85.709,10.5063]
[1771319942315,10.5016,85.748,85.701,14.09999785]
[1771319942517,6.6600939,85.75,85.702,3.59269785]
[1771319943416,17.1614939,85.75,85.705,3.59269785]
[1771319943719,2.77154478,85.74,85.705,3.59269785]
[1771319944616,13.27424478,85.74,85.705,3.59269785]
[1771319945018,2.77154478,85.74,85.705,3.59269785]
[1771319946616,6.6600939,85.74,85.68,251.47434091]
[1771319946824,2.77154478,85.74,85.691,3.59269785]
[1771319947017,3.88854912,85.729,85.691,3.59269785]
[1771319950724,2.77154478,85.72,85.679,3.59269785]
[1771319950923,3.88854912,85.727,85.679,3.59269785]
[1771319951117,2.77154478,85.72,85.679,3.59269785]
[1771319951621,9.30509359,85.773,85.623,21.0338]
[1771319951622,3.88854912,85.709,85.662,3.59269785]
[1771319951820,2.77154478,85.73,85.671,3.59269785]
[1771319952018,3.88854912,85.733,85.681,3.59269785]
[1771319953624,3.88854912,85.729,85.683,3.59269785]
[1771319953821,2.77154478,85.72,85.683,3.59269785]
[1771319954019,3.88854912,85.719,85.683,3.59269785]
[1771319955925,3.92207208,85.709,85.662,3.91096411]
[1771319956927,6.69361686,85.7,85.662,3.91096411]
[1771319957223,3.92207208,85.699,85.662,3.91096411]
[1771319957424,2.77154478,85.69,85.646,3.91096411]
[1771319958023,3.92207208,85.695,85.646,3.91096411]
[1771319958323,10.507,85.705,85.658,3.91096411]
[1771319958529,3.92207208,85.708,85.658,3.91096411]
[1771319958922,2.77154478,85.72,85.661,3.91096411]
[1771319959631,10.5047,85.719,85.673,3.91096411]
[1771319959822,3.92207208,85.723,85.673,3.91096411]
[1771319960726,3.92207208,85.723,85.676,3.91096411]
[1771319961928,3.92207208,85.723,85.678,3.91096411]
[1771319962228,3.92207208,85.737,85.696,3.91096411]
[1771319962433,3.92207208,85.749,85.696,3.91096411]
[1771319962731,2.77154478,85.76,85.713,3.91096411]
[1771319963334,2.77154478,85.76,85.715,3.91096411]
[1771319963524,10.71990866,85.795,85.715,3.91096411]
[1771319963525,2.77154478,85.77,85.715,3.91096411]
[1771319963739,2.77154478,85.78,85.721,3.91096411]
[1771319964025,20.9827,85.824,85.727,3.91096411]
[1771319964026,2.77154478,85.77,85.727,3.91096411]
[1771319966733,2.77154478,85.77,85.728,10.503]
[1771319969834,2.77154478,85.77,85.728,14.41396411]
[1771319970434,3.92207208,85.779,85.728,14.41396411]
[1771319970729,2.77154478,85.77,85.728,14.41396411]
[1771319970925,2.77154478,85.77,85.729,3.91096411]
[1771319972728,14.41897208,85.778,85.729,3.91096411]
[1771319973036,3.92207208,85.777,85.729,3.91096411]
[1771319973628,2.77154478,85.78,85.731,3.91096411]
[1771319975134,6.69361686,85.78,85.731,3.91096411]
[1771319975733,10.4968,85.779,85.731,3.91096411]
[1771319977836,14.41917208,85.776,85.731,3.91096411]
[1771319978331,3.92207208,85.775,85.731,3.91096411]
[1771319979334,10.4975,85.773,85.731,3.91096411]
[1771319980532,10.4981,85.768,85.731,3.91096411]
[1771319980732,3.92207208,85.767,85.716,3.91096411]
[1771319981539,14.42027208,85.767,85.716,3.91096411]
[1771319982738,14.42027208,85.767,85.718,3.91096411]
[1771319983238,10.4993,85.758,85.718,3.91096411]
[1771319984538,2.76960925,85.76,85.719,3.69436583]
[1771319984936,10.4984,85.766,85.719,3.69436583]
[1771319985141,14.09113273,85.766,85.719,3.69436583]
[1771319985744,10.4992,85.76,85.721,3.69436583]
[1771319987439,3.59273273,85.766,85.723,3.69436583]
[1771319988144,10.4986,85.764,85.723,3.69436583]
[1771319988337,3.59273273,85.766,85.725,3.69436583]
[1771319988942,10.4985,85.765,85.726,3.69436583]
[1771319990748,10.4974,85.774,85.73,3.7141679]
[1771319990948,2.76960925,85.77,85.73,3.7141679]
[1771319991148,3.91747676,85.769,85.73,3.7141679]
[1771319992545,14.41557676,85.768,85.73,3.7141679]
[1771319992748,3.91747676,85.767,85.722,3.7141679]
[1771319993752,10.4987,85.763,85.722,3.7141679]
[1771319994161,3.91747676,85.779,85.724,3.7141679]
[1771319995149,10.4959,85.786,85.74,3.7141679]
[1771319996862,10.4959,85.786,85.746,3.7141679]
[1771319997060,14.41257676,85.793,85.746,3.7141679]
[1771319997665,3.91747676,85.793,85.758,3.7141679]
[1771319998366,6.68708601,85.79,85.741,3.7141679]
[1771319999467,14.41297676,85.789,85.747,3.7141679]
[1771319999759,3.91747676,85.779,85.736,3.7141679]
[1771319999962,3.91747676,85.779,85.744,3.7141679]
[1771320000566,3.91747676,85.792,85.75,3.7141679]
[1771320000761,3.91747676,85.807,85.751,3.7141679]
[1771320001461,10.4942,85.8,85.759,10.4991]
[1771320001664,10.4942,85.8,85.76,3.7141679]
[1771320001962,3.91747676,85.807,85.76,3.7141679]
[1771320002162,114.9777273,86.031,85.696,163.4411]
[1771320002163,2.76960925,85.83,85.771,3.7141679]
[1771320002368,3.91747676,85.829,85.771,3.7141679]
[1771320002971,3.91747676,85.829,85.774,3.7141679]
[1771320004170,3.91747676,85.829,85.778,3.7141679]
[1771320004467,3.91747676,85.829,85.78,2.76960925]
[1771320004669,3.91747676,85.841,85.791,3.7141679]
[1771320004874,3.91747676,85.856,85.804,3.7141679]
[1771320005176,9.25524066,85.894,85.748,198.3517]
[1771320005177,2.76960925,85.87,85.811,3.7141679]
[1771320005862,3.91747676,85.871,85.821,3.7141679]
[1771320006270,10.486,85.867,85.822,3.7141679]
[1771320006572,10.486,85.867,85.772,35.01]
[1771320006573,2.76960925,85.89,85.831,3.7141679]
[1771320006776,3.91747676,85.897,85.841,3.7141679]
[1771320007271,3.91747676,85.895,85.843,3.7141679]
[1771320007467,3.91747676,85.889,85.843,3.7141679]
[1771320008362,3.91747676,85.889,85.844,10.4887]
[1771320008563,2.76960925,85.9,85.85,2.76960925]
[1771320008871,3.91747676,85.902,85.851,3.7141679]
[1771320009669,20.9499,85.958,85.851,3.7141679]
[1771320009670,2.76960925,85.9,85.852,3.7141679]
[1771320009875,6.68708601,85.9,85.852,3.7141679]
[1771320011074,3.91747676,85.899,85.852,3.7141679]
[1771320012473,3.91747676,85.899,85.855,3.7141679]
[1771320013675,3.91747676,85.899,85.857,10.4872]
[1771320013875,8.73470063,85.957,85.86,2.76960925]
[1771320013876,3.91747676,85.911,85.86,2.76960925]
[1771320014075,3.91747676,85.911,85.861,3.7141679]
[1771320014577,3.67322524,85.924,85.878,3.7710783]
[1771320015672,3.67322524,85.924,85.879,10.4844]
[1771320015874,3.67322524,85.924,85.88,3.7710783]
[1771320016182,3.67322524,85.929,85.88,3.7710783]
[1771320016383,3.67322524,85.929,85.882,10.4841]
[1771320016877,3.67322524,85.929,85.882,14.2551783]
[1771320017083,3.67322524,85.929,85.883,3.7710783]
[1771320017680,3.67322524,85.929,85.885,3.7710783]
[1771320018377,2.76960925,85.92,85.885,3.7710783]
[1771320018580,3.67322524,85.909,85.857,3.7710783]
[1771320019175,2.76960925,85.9,85.859,14.2579783]
[1771320020782,3.67322524,85.899,85.86,3.7710783]
[1771320022283,2.76960925,85.89,85.86,3.7710783]
[1771320022683,2.76960925,85.89,85.841,3.7710783]
[1771320022880,3.67322524,85.889,85.841,3.7710783]
[1771320023181,3.67322524,85.889,85.819,246.32930366]
[1771320023182,3.67322524,85.908,85.851,3.7710783]
[1771320023585,2.76960925,85.89,85.851,3.7710783]
[1771320023778,2.76960925,85.88,85.831,3.7710783]
[1771320023982,3.67322524,85.879,85.831,3.7710783]
[1771320024182,3.67322524,85.878,85.833,10.4901]
[1771320024379,2.76960925,85.87,85.833,10.4901]
[1771320024583,2.76960925,85.87,85.831,3.7710783]
[1771320025383,6.44283449,85.87,85.831,3.7710783]
[1771320025585,3.67322524,85.849,85.803,3.7710783]
[1771320026478,3.67322524,85.849,85.807,10.4932]
[1771320026679,2.76960925,85.84,85.807,3.7710783]
[1771320028384,2.76960925,85.84,85.802,3.7710783]
[1771320029785,2.76960925,85.84,85.803,14.2648783]
[1771320030182,3.67322524,85.849,85.803,14.2648783]
[1771320030696,2.76960925,85.84,85.803,3.7710783]
[1771320031194,2.76960925,85.84,85.743,21.0023]
[1771320031195,2.76960925,85.83,85.786,3.7710783]
[1771320031395,20.9656,85.894,85.786,3.7710783]
[1771320031396,2.76960925,85.82,85.786,3.7710783]
[1771320033393,2.76960925,85.81,85.773,10.4974]
[1771320033708,2.76960925,85.81,85.774,3.7710783]
[1771320035299,6.44283449,85.82,85.774,3.7710783]
[1771320035798,2.76960925,85.83,85.777,3.7710783]
[1771320036000,3.67322524,85.836,85.781,3.7710783]
[1771320036393,3.67322524,85.836,85.784,10.496]
[1771320036592,6.44283449,85.83,85.784,14.2670783]
[1771320036898,2.76960925,85.82,85.784,3.7710783]
[1771320037587,6.44283449,85.82,85.761,3.7710783]
[1771320037789,3.67322524,85.819,85.775,3.7710783]
[1771320037994,3.67322524,85.819,85.762,3.7710783]
[1771320038592,2.76960925,85.81,85.762,3.7710783]
[1771320038798,3.67322524,85.809,85.763,14.2696783]
[1771320040005,2.76750153,85.8,85.763,14.2696783]
[1771320040799,3.67322524,85.809,85.763,14.2696783]
[1771320041103,3.67322524,85.809,85.764,3.7710783]
[1771320043306,3.67322524,85.809,85.767,3.7710783]
[1771320045712,2.76750153,85.82,85.775,3.64879078]
[1771320046406,6.62404574,85.82,85.775,3.64879078]
[1771320046601,3.85654421,85.819,85.775,3.64879078]
[1771320046800,3.85654421,85.819,85.776,10.497]
[1771320047910,2.76750153,85.81,85.776,10.497]
[1771320048311,2.76750153,85.81,85.775,3.64879078]
[1771320048613,2.76750153,85.81,85.768,10.498]
[1771320048614,2.76750153,85.8,85.768,10.498]
[1771320050006,3.85654421,85.809,85.768,10.498]
[1771320051208,6.40824054,85.8,85.761,14.14769078]
[1771320053118,3.64073901,85.8,85.761,3.64879078]
[1771320053312,2.76750153,85.83,85.771,3.91265505]
[1771320053615,2.76750153,85.84,85.781,3.91265505]
[1771320054316,10.489,85.843,85.797,3.91265505]
[1771320057610,14.12973901,85.843,85.797,3.91265505]
[1771320058318,14.12973901,85.843,85.799,3.91265505]
[1771320059716,14.12973901,85.843,85.802,3.91265505]
[1771320059917,10.488,85.851,85.802,3.91265505]
[1771320060113,3.64073901,85.849,85.802,3.91265505]
[1771320060618,3.64073901,85.849,85.781,3.91265505]
[1771320061115,3.64073901,85.839,85.794,10.4948]
[1771320061412,3.64073901,85.829,85.781,3.91265505]
[1771320061812,3.64073901,85.829,85.784,10.496]
[1771320062206,6.40824054,85.82,85.781,3.91265505]
[1771320062809,3.64073901,85.819,85.781,3.91265505]
[1771320064113,3.64073901,85.87,85.781,3.91265505]
[1771320064321,10.4899,85.835,85.793,3.91265505]
[1771320065324,3.64073901,85.837,85.795,10.4948]
[1771320066825,3.64073901,85.837,85.798,3.91265505]
[1771320067020,2.76750153,85.84,85.798,3.91265505]
[1771320067221,6.40824054,85.85,85.798,3.91265505]
[1771320068219,2.76750153,85.86,85.816,10.4922]
[1771320069124,2.76750153,85.87,85.828,3.91265505]
[1771320070524,3.64073901,85.868,85.821,10.4916]
[1771320071321,10.4871,85.859,85.815,3.91265505]
[1771320071921,10.4871,85.859,85.816,14.40485505]
[1771320072121,14.12783901,85.859,85.816,14.40485505]
[1771320074016,3.64073901,85.858,85.816,14.40485505]
[1771320074928,3.64073901,85.858,85.822,10.4914]
[1771320075122,3.64073901,85.858,85.816,3.91265505]
[1771320076226,3.94530958,85.851,85.816,3.91265505]
[1771320077322,2.76750153,85.85,85.816,3.91265505]
[1771320078526,3.94530958,85.851,85.816,3.91265505]
[1771320078725,14.43330958,85.851,85.816,3.91265505]
[1771320079226,10.4889,85.844,85.816,3.91265505]
[1771320079626,2.76750153,85.84,85.804,3.88850877]
[1771320079829,6.71281111,85.84,85.804,3.88850877]
[1771320080028,14.43490958,85.838,85.804,3.88850877]
[1771320080424,14.43490958,85.838,85.78,2.76750153]
[1771320080631,2.76750153,85.83,85.781,3.88850877]
[1771320080831,6.71281111,85.83,85.782,3.88850877]
[1771320081829,10.491,85.827,85.785,3.88850877]
[1771320082028,6.71281111,85.83,85.785,3.88850877]
[1771320082331,3.94530958,85.846,85.791,3.88850877]
[1771320082531,3.94530958,85.846,85.806,3.88850877]
[1771320083128,10.4888,85.845,85.806,3.88850877]
[1771320083327,3.94530958,85.846,85.806,3.88850877]
[1771320085830,3.94530958,85.846,85.758,11.65]
[1771320085831,3.94530958,85.859,85.808,3.88850877]
[1771320086022,3.94530958,85.859,85.811,3.88850877]
[1771320086833,3.94530958,85.859,85.818,3.88850877]
[1771320087128,3.94530958,85.859,85.777,35.01]
[1771320087129,3.94530958,85.849,85.791,3.88850877]
[1771320087726,2.76750153,85.86,85.81,3.88850877]
[1771320088234,10.4866,85.862,85.81,6.6560103]
[1771320088533,10.4866,85.862,85.811,3.88850877]
[1771320088733,10.4866,85.862,85.823,3.88850877]
[1771320088936,2.76750153,85.87,85.823,3.88850877]
[1771320090132,3.94530958,85.867,85.825,3.88850877]
[1771320090532,3.94530958,85.858,85.801,3.88850877]
[1771320091732,3.94530958,85.858,85.817,3.88850877]
[1771320092837,3.94530958,85.858,85.818,10.4919]
[1771320093136,2.76750153,85.85,85.817,3.88850877]
[1771320094040,3.94530958,85.855,85.817,3.88850877]
[1771320094530,2.76750153,85.85,85.817,3.88850877]
[1771320095132,3.94530958,85.855,85.817,3.88850877]
[1771320096441,10.4864,85.864,85.81,10.4929]
[1771320096442,10.4864,85.864,85.818,3.88850877]
[1771320097034,3.94530958,85.863,85.818,3.88850877]
[1771320097745,2.76750153,85.86,85.819,14.38030877]
[1771320098136,3.94530958,85.859,85.819,3.88850877]
[1771320099643,14.43230958,85.859,85.819,3.88850877]
[1771320099849,3.94530958,85.858,85.819,3.88850877]
[1771320102447,3.94530958,85.858,85.82,10.4917]
[1771320102852,3.94530958,85.858,85.819,3.88850877]
[1771320103650,2.76404243,85.87,85.828,3.88850877]
[1771320104250,2.76404243,85.87,85.831,3.59477594]
[1771320104452,3.94530958,85.871,85.831,3.59477594]
[1771320105648,3.94530958,85.871,85.832,10.4902]
[1771320105854,3.94530958,85.871,85.832,14.08497594]
[1771320106244,3.94530958,85.871,85.833,3.59477594]
[1771320106552,14.39678329,85.882,85.837,3.59477594]
[1771320106749,3.91258329,85.882,85.837,3.59477594]
[1771320107752,3.91258329,85.882,85.845,10.4886]
[1771320111251,3.66533541,85.869,85.825,3.74228577]
[1771320112457,3.66533541,85.859,85.812,3.74228577]
[1771320113760,3.66533541,85.859,85.814,10.4925]